Cogmind - Beta 16.1 @@@ ROGUE MODE // 2026.03.08 @ 14:32:23 Player: Zable Result: Self-destructed Performance ------------- Evolutions (1) 500 Regions Visited (3) 600 Robots Destroyed (58) 290 Value Destroyed (1423) 1423 Prototype IDs (3) 60 Alien Tech Used (0) 0 Bonus (8) 8 TOTAL SCORE: 2881 Bonus ------- High Alert Combat Kills 8 Cogmind --------- Core Integrity 213/400 Matter 65/300 Energy 280/280 System Corruption 0% Temperature Cool (0) Movement Treading (160) Location -9/Storage Parts ------- > --- POWER (1) -------- Heavy Ion Engine > --- PROPULSION (4) --- Light Treads Improved Treads Improved Treads Improved Treads > --- UTILITY (2) ------ Large Storage Unit > --- WEAPON (2) ------- Guided Missile Launcher > --- INVENTORY (15) --- Heavy Ion Engine Heavy Ion Engine Heavy Ion Engine Light Treads Improved Treads Improved Treads Improved Treads Wheel Compact Wheel Small Storage Unit Light Armor Plating Improved EM Shotgun Improved EM Shotgun Grenade Launcher Mini Grenade Launcher Peak State ------------ > --- POWER ------------ Heavy Ion Engine > --- PROPULSION ------- Improved Treads Improved Treads Improved Treads Improved Treads > --- UTILITY ---------- Large Storage Unit Light Armor Plating > --- WEAPON ----------- Guided Missile Launcher > --- INVENTORY -------- Heavy Ion Engine Heavy Ion Engine Heavy Ion Engine Light Treads Improved Treads Improved Treads Improved Treads Wheel Compact Wheel Small Storage Unit Light Armor Plating Improved EM Shotgun Improved EM Shotgun Grenade Launcher Mini Grenade Launcher [Rating: 25] Favorites ----------- Power Heavy Ion Engine Engine Heavy Ion Engine Propulsion Improved Treads Treads Improved Treads Leg Aluminum Leg Utility Large Storage Unit Device Seismic Detector Storage Large Storage Unit Protection Light Armor Plating Weapon Improved EM Shotgun Energy Gun Improved EM Shotgun Ballistic Gun Light Assault Rifle Launcher Guided Missile Launcher Build | -11 -10 -9 -9 ------- Run | Yrd Mat Mat Sto Slots Evolved 2 | . . 2 . Power . | . . . . Propulsion 2 | . . 2 . Utility . | . . . . Weapon . | . . . . Parts Attached 22 | 1 6 8 7 Power 2 | . 1 . 1 Engine 2 | . 1 . 1 Core . | . . . . Reactor . | . . . . Propulsion 9 | . 2 6 1 Treads 9 | . 2 6 1 Leg . | . . . . Wheel . | . . . . Hover . | . . . . Flight . | . . . . Utility 4 | 1 . 1 2 Device 1 | 1 . . . Storage 1 | . . 1 . Processor . | . . . . Hackware . | . . . . Protection 2 | . . . 2 Artifact . | . . . . Weapon 7 | . 3 1 3 Energy Gun 5 | . 3 1 1 Energy Cannon . | . . . . Ballistic Gun . | . . . . Ballistic Cannon . | . . . . Launcher 2 | . . . 2 Special Weapon . | . . . . Impact Weapon . | . . . . Slashing Weapon . | . . . . Piercing Weapon . | . . . . Special Melee Weapon . | . . . . Unidentified Prototypes 3 | . 1 . 2 Parts Lost 8 | . 2 . 6 Power 1 | . 1 . . Propulsion 2 | . . . 2 Utility 2 | . . . 2 Weapon 3 | . 1 . 2 Highest Loss Streak 2 | . 1 . 2 To Critical Strikes . | . . . . Average Backups 10 | 6 7 6 14 Power 1 | 1 . . 2 Propulsion 5 | 4 4 2 6 Utility 1 | . . . 1 Weapon 2 | 1 2 2 3 Tool/Special . | . . . . Unused Backups 19 | . 10 1 8 Power 5 | . 1 . 4 Propulsion 7 | . 4 . 3 Utility 2 | . 1 1 . Weapon 5 | . 4 . 1 Tool/Special . | . . . . Average Slot Usage (%) 96 | . 99 99 94 Engine 11 | . 13 11 11 Treads 39 | . 25 43 43 Device 6 | . 14 11 . Storage 11 | . 14 11 11 Protection 3 | . . . 6 Energy Gun 21 | . 27 22 20 Peak Build Rating 25 | 7 14 19 25 Average Rating 18 | 6 13 17 20 On Entrance 11 | 6 7 14 19 Avg Prop Armor Cover (%) . | . . . . Naked Turns . | . . . . Heaviest Build 41 | 12 15 30 41 Greatest Support 92 | 20 46 92 92 Greatest Overweight (x) . | . . . . Average Overweight (x) . | . . . . Largest Inventory Capacity 15 | 8 8 15 15 Average Capacity 13 | 8 8 14 15 Most Carried 15 | 6 8 13 15 Average Carried 11 | 6 7 6 14 Final Capacity 15 | 8 8 15 15 Final Carried 15 | 6 6 13 15 Class Distribution -------------------- 100% | Mutant Dominant Class ---------------- Mutant | -10/Materials Mutant | -9/Materials Mutant | -9/Storage Resources | -11 -10 -9 -9 ----------- Run | Yrd Mat Mat Sto Matter Collected 501 | 211 55 70 165 Remotely . | . . . . Salvage Created 2129 | 20 303 467 1339 Parts 153 | 4 20 38 91 Haulers Intercepted 3 | . . 2 1 Recyclers Shooed 1 | . . 1 . Parts Field Recycled . | . . . . Retrieved Matter . | . . . . Parts Self-Destructed . | . . . . Prevented . | . . . . Parts Restored . | . . . . Kills | -11 -10 -9 -9 ------- Run | Yrd Mat Mat Sto Combat Hostiles Destroyed 37 | . 4 8 25 Guns 26 | . 3 3 20 AOE 10 | . 1 5 4 Classes Destroyed 10 | 1 3 5 1 Worker 6 | . 1 . 5 Builder 1 | . . . 1 Tunneler 1 | 1 . . . Hauler 3 | . . 2 1 Recycler 1 | . . 1 . Mechanic 1 | . . 1 . Watcher 8 | . 3 3 2 Swarmer 9 | . . 6 3 Grunt 17 | . 4 1 12 Sentry 11 | . . 1 10 Best Kill Streak 11 | 1 3 9 11 Combat Bots Only 10 | . 2 4 10 Max Kills in Single Turn 3 | 1 2 3 2 Gunslinging 1 | . . . 1 Exploded 2 | . 1 2 1 Melee . | . . . . Uniques/NPCs Destroyed . | . . . . Combat | -11 -10 -9 -9 -------- Run | Yrd Mat Mat Sto Hostile Shots Fired 176 | . 30 32 114 Missed 56 | . 13 11 32 Hits 120 | . 17 21 82 Projectile 120 | . 17 21 82 Critical Strikes 2 | . . 2 . Damage Taken 1787 | . 248 323 1216 Core 205 | . 18 17 170 Absorbed by Shields . | . . . . Core Remaining (%) 96 | 100 92 . . Volleys Fired 118 | 1 17 19 81 Largest 2 | 2 2 2 2 Hottest 90 | 70 90 90 90 Shots Fired 214 | 2 31 38 143 Gun 191 | 2 31 38 120 Cannon . | . . . . Launcher 23 | . . . 23 Special . | . . . . Kinetic 1 | 1 . . . Thermal 1 | 1 . . . Explosive 23 | . . . 23 Electromagnetic 189 | . 31 38 120 Robot Hit Streak 19 | 1 7 6 19 Robot Miss Streak 4 | . 3 4 4 Penetration Max . | . . . . Secondary Targets 6 | . 1 1 4 Max Gunslinging Chain 1 | . 1 1 1 Shots Hit Robots 161 | 1 23 31 106 Core Hits 95 | 1 14 20 60 Critical Kills . | . . . . Critical Parts Destroyed . | . . . . Critical Strikes . | . . . . Melee Attacks . | . . . . Impact . | . . . . Slashing . | . . . . Piercing . | . . . . Sneak Attacks . | . . . . Combat Hostiles . | . . . . Follow-up Attacks . | . . . . Damage Inflicted 3433 | 12 491 831 2099 Guns 2513 | 12 412 502 1587 Cannons . | . . . . Explosions 920 | . 79 329 512 Melee . | . . . . Ramming . | . . . . Kinetic . | . . . . Thermal 576 | 12 79 329 156 Explosive 356 | . . . 356 Electromagnetic 2501 | . 412 502 1587 Impact . | . . . . Slashing . | . . . . Piercing . | . . . . Highest Corruption . | . . . . Average Corruption . | . . . . Corruption Purged . | . . . . Corruption Blocked . | . . . . Overload Shots . | . . . . Overflow Damage 10 | . . 10 . Projectiles . | . . . . Explosions 10 | . . 10 . Melee . | . . . . Knockbacks . | . . . . Impact . | . . . . Kinetic . | . . . . Secondary . | . . . . Self-Inflicted Damage 298 | . 28 101 169 Shots 11 | . 1 3 7 Rammed . | . . . . Targets Rammed . | . . . . Kicked . | . . . . Crushed . | . . . . Highest Temperature 271 | 30 153 156 271 Average Temperature 67 | 18 39 43 80 Received Heat Transfer 525 | . 123 42 360 Siege Activations . | . . . . Martial Activations . | . . . . Shielding Activations . | . . . . Robots Disrupted . | . . . . Combat Hostiles . | . . . . Robots Corrupted 1 | . . . 1 Combat Hostiles 1 | . . . 1 Parts Fried 11 | . 1 1 9 Impact Corruptions . | . . . . Robots Melted . | . . . . Combat Hostiles . | . . . . Parts Melted 1 | . . . 1 Heat Transferred 687 | 37 50 450 150 Parts Sabotaged . | . . . . Parts Stolen . | . . . . Parts Stripped . | . . . . Power Chain Reactions 13 | . 3 7 3 Alert | -11 -10 -9 -9 ------- Run | Yrd Mat Mat Sto Maximum Alert Level 2 | . . . 2 Low Security (%) 70 | 100 100 100 46 Level 1 26 | . . . 47 Level 2 3 | . . . 5 Level 3 . | . . . . Level 4 . | . . . . Level 5 . | . . . . High Security . | . . . . Max Security . | . . . . Peak Influence 430 | 5 47 141 430 Initial 52 | . 3 1 52 Average 134 | 3 15 32 222 Influence Increases 1352 | 5 164 297 886 Destroy 0b10 Robot/C 740 | . 80 160 500 Destroy 0b10 Robot/NC 105 | 5 20 35 45 Destroy Leader 222 | . 26 50 146 Successful Hack 36 | . 10 7 19 Disable Machine 75 | . 15 15 45 Destroy Structure 129 | . 13 30 86 Lose Combat Pursuer 45 | . . . 45 Influence Decreases 938 | . 165 176 597 Entered New Map 78 | . 2 3 73 Time Decay 790 | . 153 173 464 Lost Part 70 | . 10 . 60 Squads Dispatched 3 | . . 1 2 Investigation 2 | . . 1 1 Extermination . | . . . . Reinforcement 1 | . . . 1 Assault . | . . . . Garrison . | . . . . Intercept . | . . . . Searches Triggered . | . . . . Construction Impeded . | . . . . Haulers Reinforced . | . . . . Active Scanning Responses . | . . . . Cargo Convoy Interrupts . | . . . . Stealth | -11 -10 -9 -9 --------- Run | Yrd Mat Mat Sto Distress Signals 5 | . 1 1 3 Communications Jammed . | . . . . Distress Signals . | . . . . Times Spotted 51 | . 8 12 31 Peak Tracking Total 5 | . 3 5 5 Tactical Retreats 3 | . . . 3 Traps | -11 -10 -9 -9 ------- Run | Yrd Mat Mat Sto Traps Triggered 3 | . . 1 2 Indirectly . | . . . . Trap Hack Attempts . | . . . . Triggered . | . . . . Disarmed . | . . . . Reprogrammed . | . . . . Reused . | . . . . Traps Extracted . | . . . . Installed . | . . . . Triggered . | . . . . Machines | -11 -10 -9 -9 ---------- Run | Yrd Mat Mat Sto Machines Disabled 5 | . 1 1 3 Max in Single Turn 1 | . 1 1 1 Garrison Access 1 | . . . 1 Machines Repaired . | . . . . Machines Dismantled . | . . . . Machines Sabotaged . | . . . . Overloaded Fab Kills . | . . . . Hacking | -11 -10 -9 -9 --------- Run | Yrd Mat Mat Sto Machines Accessed 12 | . 3 1 8 Terminals 11 | . 3 1 7 Fabricators . | . . . . Repair Stations . | . . . . Recycling Units . | . . . . Scanalyzers . | . . . . Garrison Access 1 | . . . 1 Total Hacks 32 | . 12 2 18 Successful 14 | . 5 1 8 Failed 17 | . 6 1 10 Catastrophic 1 | . . . 1 Database Lockouts 1 | . 1 . . Manual 20 | . 11 2 7 Terminals 30 | . 12 2 16 Fabricators . | . . . . Repair Stations . | . . . . Recycling Units . | . . . . Scanalyzers . | . . . . Garrison Access 2 | . . . 2 Terminal Hacks 9 | . 3 1 5 Robot Analysis 3 | . 2 . 1 Open Door 2 | . . . 2 Branch Access Points 2 | . . 1 1 Locate Traps 1 | . 1 . . Zone Layout 1 | . . . 1 Fabricator Hacks . | . . . . Repair Station Hacks . | . . . . Recycling Unit Hacks . | . . . . Scanalyzer . | . . . . Garrison Access Hacks 1 | . . . 1 Seal Access 1 | . . . 1 Unauthorized Hacks 4 | . 2 . 2 Terminals 4 | . 2 . 2 Botnet 4 | . 2 . 2 Fabricators . | . . . . Repair Stations . | . . . . Recycling Units . | . . . . Scanalyzers . | . . . . Garrison Access . | . . . . Data Cores Recovered . | . . . . Used . | . . . . Hacking Detections 6 | . 2 . 4 Full Trace Events . | . . . . Feedback Events . | . . . . Feedback Blocked . | . . . . Robot Schematics Acquired . | . . . . Robots Built . | . . . . Authchips . | . . . . Time . | . . . . Total Robot Build Rating . | . . . . Part Schematics Acquired . | . . . . Parts Built . | . . . . Authchips . | . . . . Time . | . . . . Total Part Build Rating . | . . . . Part Studies Acquired . | . . . . Parts Repaired . | . . . . Time . | . . . . Parts Recycled . | . . . . Recycled Matter . | . . . . Retrieved Matter . | . . . . Retrieved Components . | . . . . Parts Scanalyzed . | . . . . Part Schematics Acquired . | . . . . Parts Damaged . | . . . . Bothacking | -11 -10 -9 -9 ------------ Run | Yrd Mat Mat Sto Used RIF Installer . | . . . . Robots Hacked . | . . . . Non-combat . | . . . . Combat . | . . . . Robot Hacks Applied . | . . . . Relay Couplers Released . | . . . . Fabnet Peak Effective % . | . . . . Robots Rewired . | . . . . Allies Hacked . | . . . . Hacks Repelled . | . . . . Allies | -11 -10 -9 -9 -------- Run | Yrd Mat Mat Sto Total Allies . | . . . . Largest Group . | . . . . Highest-Rated Group . | . . . . Highest-Rated Ally . | . . . . Total Orders . | . . . . Ally Attacks . | . . . . Total Damage . | . . . . Kills . | . . . . Allies Corrupted . | . . . . Allies Melted . | . . . . Intel | -11 -10 -9 -9 ------- Run | Yrd Mat Mat Sto Active Infowar (turns) 1013 | 8 420 491 94 Seismic 1013 | 8 420 491 94 Robot Analysis Total 3 | . 2 . 1 Derelict Logs Recovered . | . . . . Drone Launches . | . . . . Drone Recoveries . | . . . . Exploration | -11 -10 -9 -9 ------------- Run | Yrd Mat Mat Sto Turns Passed 2098 | 17 420 491 1170 Spaces Moved 1020 | 11 225 238 546 Core . | . . . . Treads 994 | . 210 238 546 Legs 26 | 11 15 . . Wheels . | . . . . Hover . | . . . . Flight . | . . . . Fastest Speed 120 | 120 120 160 160 Average Speed 158 | 120 157 160 160 Slowest Speed 160 | 120 160 160 160 Overloaded Moves . | . . . . Propulsion Burnouts . | . . . . Robots Hopped . | . . . . Potential Cave-ins 1 | . . . 1 Cave-ins Triggered . | . . . . Exploration Rate (%) 39 | 2 55 24 77 Regions Visited 3 Branch Regions 1 Pre-discovered Areas . | . . . . Known Exits Taken 1 | . . 1 . Unknown Exits Taken 2 | 1 1 . . Scrap Searched . | . . . . Spaces Dug . | . . . . Terrain Destroyed 182 | . 13 29 140 Melee . | . . . . Projectile . | . . . . AOE 182 | . 13 29 140 Terrain Rammed . | . . . . Walls Destroyed . | . . . . Machines Disabled . | . . . . Actions | -11 -10 -9 -9 --------- Run | Yrd Mat Mat Sto Total 1282 | 12 262 308 700 Wait 95 | . 7 39 49 Move 1017 | 10 224 237 546 Hop . | . . . . Pick Up 15 | . 5 4 6 Fast Attach 4 | 1 . . 3 Attach 10 | . 2 2 6 Detach 2 | . . . 2 Swap 13 | . 4 6 3 Drop 8 | . 3 1 4 Fire 118 | 1 17 19 81 Melee . | . . . . Ram . | . . . . Kick . | . . . . Crush . | . . . . Escape Stasis . | . . . . Rewire . | . . . . Trap . | . . . . Miscellaneous . | . . . . Route ------- -11/Scrapyard -10/Materials (discovered 3 exits: *Mat / [*Min x2]) -9/Materials (discovered 3 exits: *Min x2 / *Sto) -9/Storage (discovered 2 exits: [*Mat] / Rec) History --------- Turn | Location | Event 1 | -11/Scrapyard | Discovered new exit (range 2) 18 | -11/Scrapyard | Entered Materials 310 | -10/Materials | Build established: Mutant 327 | -10/Materials | Discovered new exit (range 9) 338 | -10/Materials | Discovered new exit (range 14) 392 | -10/Materials | Central database locked down 413 | -10/Materials | Discovered new exit (range 15) 438 | -10/Materials | Entered another Materials area 438 | -9/Materials | Evolved 2 slots: Propulsion x2 671 | -9/Materials | Discovered new exit (range 12) 687 | -9/Materials | Identified exit to Mines 687 | -9/Materials | Identified exit to Storage 929 | -9/Materials | Entered Storage 1117 | -9/Storage | Destroyed 10 combat bots 1782 | -9/Storage | Found Prototype Launcher 1782 | -9/Storage | Identified Gui. Missile Launcher 1894 | -9/Storage | Discovered new exit (range 16) 1910 | -9/Storage | Identified exit to Recycling 2099 | -9/Storage | Self-destructed Last Messages --------------- 02070_ K-01 Serf collects debris. 02073_ The unstable cave ceiling collapses. 02074_ U-05 Engineer builds a Door. 02074_ K-01 Serf collects debris. 02077_ The unstable cave ceiling collapses. 02078_ K-01 Serf collects debris. 02078_ U-05 Engineer lays Concrete. 02081_ U-05 Engineer builds a Wall. 02081_ K-01 Serf collects debris. 02084_ The unstable cave ceiling collapses. 02085_ U-05 Engineer lays Concrete. 02086_ K-01 Serf collects debris. 02087_ U-05 Engineer builds a Wall. 02090_ The unstable cave ceiling collapses. 02091_ U-05 Engineer lays Concrete. 02094_ The unstable cave ceiling collapses. 02094_ K-01 Serf collects debris. 02094_ U-05 Engineer builds a Wall. 02098_ U-05 Engineer lays Concrete. 02099_ The unstable cave ceiling collapses. Map ----- +----------------------------------------------------+ | ?? !#= """ #????????? | | [*+% #????????? | | # """ #????????? | | ############### # """ ?????????? | | "" ## ## #? """ ?????????? | | T" ## """ ## +? ?????????? | | ## """ ## #+#??#######????????? | | ## """ ## # ?? #?????????? | | ## ## # #?????????? | | [= # """ + # #?????????? | | == ## """ ## # #?????????? | | == ## """ ## %############????????? | | %[ ## ## ## ! #????????? | | ##+##### % ## ## #????????? | | #######+## # = = #????????? | | % # = #????????? | | %%T % +%= #????????? | | % ########## #! #????????? | | ############# # % ! #????????? | | ????# # # #????????? | | ????# """" + % ## # ####????????? | | ????# " "" # # ###?????????? | | ????# " """ # ## # #"?????????? | | ????# """ " + u k "?>???????? | | ????# "" " # "?????????? | | ????# """" # # @#"#####????? | | ????# # # # #????? | | ????############# # #????? | | ????????????????### ## #????? | | ??????????????????###?#### # ###????? | | | | | | | | | | | | | | | | | | | | | | | | | | | | | | | | | | | | | | | | | +----------------------------------------------------+ Best States ------------- Heat Dissipation 28 Energy Generation 14 Energy Capacity 280 Matter Stores 300 Matter Capacity 300 Sight Range 16 Terrain Scan Density 10 Armor Coverage 150 Evasion (%) 55 Recoil Reduction 4 Item Schematics ----------------- None Robot Schematics ------------------ None Fabricated ------------ Nothing Repaired ---------- Nothing Studied --------- None Alien Tech Used ----------------- None Achievements -------------- None Challenges ------------ None Game ------ Seed ConstructTractorBiocell Manual? 0 Play Time 00:16:53 Cumulative 50.7 hours Start 2026.03.08 @ 14:15:30 End 2026.03.08 @ 14:32:23 Sessions 1 Manual Loads 0 Difficulty Rogue Special Mode None Game No. 75 Rogue 50 Adventurer 25 Explorer 0 Win Type - Total 0 Types 0/0/0/0/0/0/0/0/0/0 Lore% 35 Gallery% 36 Achievement% 30 Wizard Run 0 Options --------- Layout 0 ASCII 0 Keyboard 1 Movement Numpad Keybinds 0 Fullscreen 1 Font 24/Smallcaps Map View 183x50 Zoom Use 0% Tactical HUD 1 Map Filters NONE Filters NONE Steam 1 RUN: 57d4ca4f-6562-4a2b-b2bf-8614e66216bc